Department Family,Entity,Payment Date,Expense Type,Expense Area,Supplier,System Transaction Number,Amount
MOJ,NOMS,16/11/2010,WIP - Acquisitions,Estates Capacity,KIER REGIONAL LTD,3761098,"14,815,545.50"
MOJ,NOMS,11/11/2010,Contracted-out Probation Boards,London DOMS Office,LONDON PROBATION TRUST,3766372,"10,000,000.00"
MOJ,NOMS,02/11/2010,Contracted-out Building Maintenance,Estates Capacity,HOME OFFICE - AFU CASH MANAGEMENT,3754133,"8,034,365.95"
MOJ,NOMS,10/11/2010,Funding payments to Probation Boards,West Midlands DOMS Office,STAFFORDSHIRE AND WEST MIDLANDS PROBATION TRUST,3759977,"6,100,000.00"
MOJ,NOMS,11/11/2010,Contract IT Maintenance,MoJ ICT,STERIA LTD,3773434,"5,367,867.86"
MOJ,NOMS,10/11/2010,Contracted-out Electronic Monitoring,National Operations Group,G4S CARE & JUSTICE SERVICES LTD,3761805,"4,879,839.61"
MOJ,NOMS,11/11/2010,Contracted-out Probation Trusts,Wales Probation Trust,WALES PROBATION TRUST,3768706,"4,548,418.00"
MOJ,NOMS,12/11/2010,WIP - Acquisitions,Estates Capacity,BRIDGEND CUSTODIAL SERVICES LTD,3763169,"4,359,802.26"
MOJ,NOMS,10/11/2010,Contracted-out Probation Trusts,Greater Manchester Probation Trust,GREATER MANCHESTER PROBATION TRUST,3757704,"4,109,070.00"
MOJ,NOMS,10/11/2010,Contracted-out Probation Trusts,West Yorkshire Probation Trust,WEST YORKSHIRE PROBATION TRUST,3759912,"3,535,080.00"
MOJ,NOMS,08/11/2010,Contracted-out operation of prisons and detention centres,Altcourse,FAZAKERLEY PRISON SERVICES LTD,3763295,"3,290,656.20"
MOJ,NOMS,10/11/2010,Contracted-out operation of prisons and detention centres,Parc,BRIDGEND CUSTODIAL SERVICES LTD,3763102,"3,141,462.12"
MOJ,NOMS,04/11/2010,Contracted-out operation of prisons and detention centres,Forest Bank,AGECROFT PRISON MANAGEMENT LTD,3761787,"2,861,893.85"
MOJ,NOMS,18/11/2010,WIP - Acquisitions,Estates Capacity,WATES CONSTRUCTION LTD,3766460,"2,701,100.36"
MOJ,NOMS,11/11/2010,Contracted-out Probation Trusts,South East DOMS Office,SURREY & SUSSEX PROBATION TRUST,3768291,"2,500,000.00"
MOJ,NOMS,10/11/2010,Contracted-out Probation Trusts,Merseyside Probation Trust,MERSEYSIDE PROBATION TRUST,3763432,"2,500,000.00"
MOJ,NOMS,17/11/2010,Contracted-out Computer Services,Quantum,HP ENTERPRISE SERVICES UK LTD,3781831,"2,424,194.51"
MOJ,NOMS,05/11/2010,Contracted-out operation of prisons and detention centres,Dovegate,MORETON PRISON SERVICES LTD,3760058,"2,414,565.63"
MOJ,NOMS,09/11/2010,Contracted-out operation of prisons and detention centres,Bronzefield,ASHFORD PRISON SERVICES LIMITED,3765991,"2,253,655.13"
MOJ,NOMS,01/11/2010,Contracted-out Probation Trusts,South East DOMS Office,THAMES VALLEY PROBATION TRUST,3757122,"2,151,033.42"
MOJ,NOMS,10/11/2010,Contracted-out Probation Trusts,South Yorkshire Probation Trust,SOUTH YORKSHIRE PROBATION TRUST,3768395,"2,118,416.67"
MOJ,NOMS,12/11/2010,Contracted-out Probation Trusts,South East DOMS Office,HAMPSHIRE PROBATION TRUST,3764734,"2,094,000.00"
MOJ,NOMS,03/11/2010,Contracted-out operation of prisons and detention centres,Ashfield,PUCKLECHURCH CUSTODIAL SERVICES LTD,3760056,"2,079,852.00"
MOJ,NOMS,03/11/2010,Contracted-out operation of prisons and detention centres,Lowdham Grange,LOWDHAM GRANGE PRISON SERVICES LTD,3760060,"2,043,476.03"
MOJ,NOMS,10/11/2010,Contracted-out Probation Trusts,South East DOMS Office,KENT PROBATION TRUST,3761360,"2,000,000.00"
MOJ,NOMS,15/11/2010,Contracted-out Probation Trusts,Lancashire Probation Trust,LANCASHIRE PROBATION TRUST,3777670,"2,000,000.00"
MOJ,NOMS,29/11/2010,Contracted-out Escorts,Prisoner Escort & Custody Service (PECS),RELIANCE SECURE TASK MANAGEMENT,3778930,"1,991,747.42"
MOJ,NOMS,04/11/2010,WIP - Acquisitions,Estates Capacity,KIER NORTHERN,3761115,"1,934,194.53"
MOJ,NOMS,12/11/2010,Contracted-out Probation Trusts,Durham Tees Valley Probation Trust,DURHAM TEES VALLEY PROBATION TRUST,3766259,"1,921,010.00"
MOJ,NOMS,12/11/2010,Contracted-out operation of prisons and detention centres,Doncaster,SERCO LTD,3774876,"1,887,017.43"
MOJ,NOMS,29/11/2010,WIP - Acquisitions,Estates Capacity,INTERSERVE PROJECT SERVICES LTD,3744492,"1,770,155.95"
MOJ,NOMS,10/11/2010,Contracted-out Probation Trusts,Avon and Somerset Probation Trust,AVON AND SOMERSET PROBATION TRUST,3762806,"1,680,708.00"
MOJ,NOMS,01/11/2010,Contracted-out Probation Trusts,Norfolk & Suffolk Probation Trust,NORFOLK AND SUFFOLK PROBATION TRUST,3756294,"1,679,458.71"
MOJ,NOMS,11/11/2010,Contracted-out Escorts,Prisoner Escort & Custody Service (PECS),SERCO LTD,3765294,"1,663,935.17"
MOJ,NOMS,12/11/2010,Contracted-out Probation Trusts,Devon and Cornwall Probation Trust,DEVON AND CORNWALL PROBATION TRUST,3771460,"1,645,250.00"
MOJ,NOMS,02/11/2010,VISA Costs,MOJ Shared Services NOMS Delivery,COMPANY BARCLAYCARD,3758732,"1,626,003.66"
MOJ,NOMS,12/11/2010,Contracted-out Probation Trusts,Essex Probation Trust,ESSEX PROBATION TRUST,3768391,"1,615,187.43"
MOJ,NOMS,10/11/2010,Contracted-out Probation Trusts,Nottinghamshire Probation Trust,NOTTINGHAMSHIRE PROBATION TRUST,3764744,"1,549,200.00"
MOJ,NOMS,23/11/2010,Contracted-out Prison Shop,Chief Operating Officers Office,EXEL EUROPE1 LTD,3781576,"1,546,391.00"
MOJ,NOMS,10/11/2010,Contracted-out Probation Trusts,Humberside Probation Trust,HUMBERSIDE PROBATION TRUST,3766503,"1,526,821.17"
MOJ,NOMS,11/11/2010,Contracted-out Escorts,Prisoner Escort & Custody Service (PECS),SERCO LTD,3765292,"1,469,770.90"
MOJ,NOMS,10/11/2010,Contracted-out operation of prisons and detention centres,Rye Hill,ONLEY PRISON SERVICES LTD,3768658,"1,436,428.66"
MOJ,NOMS,10/11/2010,Contracted-out Escorts,Prisoner Escort & Custody Service (PECS),G4S CARE & JUSTICE SERVICES LTD,3765663,"1,387,931.28"
MOJ,NOMS,09/11/2010,Contracted-out operation of prisons and detention centres,Peterborough,PETERBOROUGH PRISON MANAGEMENT LTD,3766027,"1,350,455.08"
MOJ,NOMS,12/11/2010,Funding payments to Probation Boards,West Midlands DOMS Office,WEST MERCIA PROBATION TRUST,3771380,"1,311,930.00"
MOJ,NOMS,10/11/2010,Contracted-out Probation Trusts,Cheshire Probation Trust,CHESHIRE PROBATION TRUST,3763354,"1,260,000.00"
MOJ,NOMS,24/11/2010,WIP - Acquisitions,Estates Capacity,INTERSERVE PROJECT SERVICES LTD,3791098,"1,239,042.20"
MOJ,NOMS,12/11/2010,Contracted-out operation of prisons and detention centres,Peterborough,PETERBOROUGH PRISON MANAGEMENT LTD,3766025,"1,188,321.45"
MOJ,NOMS,11/11/2010,WIP - Acquisitions,MoJ ICT,STERIA LTD,3773434,"1,141,430.67"
MOJ,NOMS,30/11/2010,WIP - Acquisitions,Estates Capacity,KIER REGIONAL LTD,3769007,"1,137,934.63"
MOJ,NOMS,12/11/2010,Contracted-out Escorts,Prisoner Escort & Custody Service (PECS),SERCO LTD,3765293,"1,042,242.83"
MOJ,NOMS,12/11/2010,Contracted-out Escorts,Prisoner Escort & Custody Service (PECS),G4S CARE & JUSTICE SERVICES LTD,3765662,"1,038,035.25"
MOJ,NOMS,12/11/2010,Contracted-out Escorts,Prisoner Escort & Custody Service (PECS),G4S CARE & JUSTICE SERVICES LTD,3765665,"985,181.37"
MOJ,NOMS,18/11/2010,WIP - Acquisitions,Estates Capacity,INTERSERVE PROJECT SERVICES LTD,3781583,"967,290.90"
MOJ,NOMS,10/11/2010,Contracted-out Probation Trusts,Hertfordshire Probation Trust,HERTFORDSHIRE PROBATION TRUST,3763618,"959,078.71"
MOJ,NOMS,12/11/2010,Contracted-out Escorts,Prisoner Escort & Custody Service (PECS),G4S CARE & JUSTICE SERVICES LTD,3765666,"951,724.00"
MOJ,NOMS,04/11/2010,Contract IT Maintenance,MoJ ICT,HP ENTERPRISE SERVICES UK LTD,3756561,"919,487.91"
MOJ,NOMS,15/11/2010,Contracted-out Probation Trusts,Cumbria Probation Trust,CUMBRIA PROBATION TRUST,3777671,"855,000.00"
MOJ,NOMS,10/11/2010,Contracted-out Probation Trusts,York and North Yorkshire Probation Trust,YORK AND NORTH YORKSHIRE PROBATION TRUST,3759915,"826,501.00"
MOJ,NOMS,12/11/2010,Contracted-out Probation Trusts,Bedfordshire Probation Trust,BEDFORDSHIRE PROBATION TRUST,3771247,"819,006.14"
MOJ,NOMS,19/11/2010,WIP - Acquisitions,MoJ ICT,HEWLETT-PACKARD LTD,3754439,"786,769.65"
MOJ,NOMS,10/11/2010,Contracted-out Probation Trusts,Dorset Probation Trust,DORSET PROBATION TRUST,3766915,"764,391.00"
MOJ,NOMS,02/11/2010,Contracted-out Probation Trusts,Northamptonshire Probation Trust,NORTHAMPTONSHIRE PROBATION TRUST,3756692,"763,083.00"
MOJ,NOMS,29/11/2010,WIP - Acquisitions,Estates Capacity,KIER REGIONAL LTD,3794879,"757,875.00"
MOJ,NOMS,10/11/2010,Contracted-out Probation Trusts,Lincolnshire Probation Trust,LINCOLNSHIRE PROBATION TRUST,3768540,"748,566.00"
MOJ,NOMS,30/11/2010,Contracted-out operation of prisons and detention centres,Wolds,G4S CARE & JUSTICE SERVICES LTD,3795552,"747,369.88"
MOJ,NOMS,11/11/2010,WIP - Acquisitions,Estates Capacity,WILLMOTT DIXON CONSTRUCTION LTD,3764908,"733,811.26"
MOJ,NOMS,17/11/2010,WIP - Acquisitions,NOMIS Programme,HP ENTERPRISE SERVICES UK LTD,3771775,"693,828.68"
MOJ,NOMS,24/11/2010,Contracted-out Other Services,National Operations Group,HOME GROUP LTD (STONHAM),3777533,"688,368.00"
MOJ,NOMS,10/11/2010,Contracted-out Escorts,Prisoner Escort & Custody Service (PECS),G4S CARE & JUSTICE SERVICES LTD,3765290,"675,150.87"
MOJ,NOMS,05/11/2010,Contracted-out operation of prisons and detention centres,Altcourse,FAZAKERLEY PRISON SERVICES LTD,3763294,"660,804.37"
MOJ,NOMS,12/11/2010,Contracted-out Probation Trusts,Wiltshire Probation Trust,WILTSHIRE PROBATION TRUST,3763413,"637,992.00"
MOJ,NOMS,10/11/2010,WIP - Acquisitions,Estates Capacity,SHAYLOR CONSTRUCTION LTD,3771330,"624,058.95"
MOJ,NOMS,12/11/2010,Contracted-out Probation Trusts,Gloucestershire Probation Trust,GLOUCESTERSHIRE PROBATION TRUST,3771280,"621,262.49"
MOJ,NOMS,23/11/2010,Legal Representation,Chief Operating Officers Office,TREASURY SOLICITORS,3787898,"616,194.87"
MOJ,NOMS,11/11/2010,Contracted-out Escorts,Prisoner Escort & Custody Service (PECS),G4S CARE & JUSTICE SERVICES LTD,3765287,"597,309.29"
MOJ,NOMS,05/11/2010,Contracted-out Building Maintenance,Estates Capacity,HOME OFFICE - AFU CASH MANAGEMENT,3754131,"584,976.19"
MOJ,NOMS,03/11/2010,Contracted-out operation of prisons and detention centres,Dovegate,MORETON PRISON SERVICES LTD,3760057,"583,754.00"
MOJ,NOMS,10/11/2010,WIP - Acquisitions,MoJ ICT,HP ENTERPRISE SERVICES UK LTD,3752180,"557,971.17"
MOJ,NOMS,10/11/2010,Contracted-out Escorts,Prisoner Escort & Custody Service (PECS),G4S CARE & JUSTICE SERVICES LTD,3765664,"553,778.50"
MOJ,NOMS,29/11/2010,Prison Shop Cost of Sales (No VAT),Chief Operating Officers Office,EXEL EUROPE1 LTD,3794201,"492,924.65"
MOJ,NOMS,12/11/2010,In Cell TV Costs,Unallocated Budgets,COMPUTACENTER (U K) LTD,3774819,"485,922.12"
MOJ,NOMS,05/11/2010,Prison Shop Cost of Sales,Chief Operating Officers Office,EXEL EUROPE1 LTD,3762016,"458,465.56"
MOJ,NOMS,03/11/2010,Contracted-out Probation Trusts,Wales Probation Trust,WALES PROBATION TRUST,3757916,"437,894.00"
MOJ,NOMS,19/11/2010,WIP - Acquisitions,Estates Capacity,INTERSERVE PROJECT SERVICES LTD,3784421,"433,575.00"
MOJ,NOMS,17/11/2010,Contracted-out Computer Services,NOMIS Programme,HP ENTERPRISE SERVICES UK LTD,3771775,"433,391.51"
MOJ,NOMS,17/11/2010,Contracted-out Other Services,National Operations Group,HOME GROUP LTD (STONHAM),3749882,"428,110.00"
MOJ,NOMS,22/11/2010,WIP - Acquisitions,Estates Capacity,KIER REGIONAL LTD,3749699,"420,062.50"
MOJ,NOMS,12/11/2010,Prison Shop Cost of Sales,Chief Operating Officers Office,EXEL EUROPE1 LTD,3773746,"408,081.03"
MOJ,NOMS,10/11/2010,Prison Shop Cost of Sales,Chief Operating Officers Office,EXEL EUROPE1 LTD,3770839,"404,658.04"
MOJ,NOMS,18/11/2010,Prison Shop Cost of Sales,Chief Operating Officers Office,EXEL EUROPE1 LTD,3780196,"383,862.37"
MOJ,NOMS,08/11/2010,WIP - Acquisitions,Estates Capacity,BRIDGEND CUSTODIAL SERVICES LTD,3763170,"380,739.95"
MOJ,NOMS,09/11/2010,WIP - Acquisitions,Estates Capacity,KIER REGIONAL LTD,3768779,"373,481.14"
MOJ,NOMS,08/11/2010,WIP - Acquisitions,Estates Capacity,KIER REGIONAL LTD,3761405,"364,344.00"
MOJ,NOMS,09/11/2010,WIP - Acquisitions,Estates Capacity,WATES CONSTRUCTION LTD,3743387,"355,882.83"
MOJ,NOMS,12/11/2010,Funding payments to Probation Boards,West Midlands DOMS Office,WARWICKSHIRE PROBATION TRUST,3768317,"350,000.00"
MOJ,NOMS,23/11/2010,Legal Representation,Chief Operating Officers Office,TREASURY SOLICITORS,3787904,"322,264.15"
MOJ,NOMS,23/11/2010,Contracted-out Prison Shop,Chief Operating Officers Office,EXEL EUROPE1 LTD,3781577,"316,589.00"
MOJ,NOMS,05/11/2010,Contracted-out operation of prisons and detention centres,Parc,BRIDGEND CUSTODIAL SERVICES LTD,3763096,"306,349.44"
MOJ,NOMS,29/11/2010,WIP - Acquisitions,Estates Capacity,INTERSERVE PROJECT SERVICES LTD,3794327,"301,152.50"
MOJ,NOMS,15/11/2010,WIP - Acquisitions,NOMIS Programme,STERIA LTD,3737307,"295,320.98"
MOJ,NOMS,24/11/2010,WIP - Acquisitions,Estates Capacity,WATES CONSTRUCTION LTD,3790413,"294,509.60"
MOJ,NOMS,12/11/2010,WIP - Acquisitions,Estates Capacity,CALEDONIAN BUILDING SYSTEMS,3774590,"267,580.40"
MOJ,NOMS,16/11/2010,WIP - Acquisitions,Estates Capacity,INTERSERVE PROJECT SERVICES LTD,3774782,"264,460.78"
MOJ,NOMS,11/11/2010,WIP - Acquisitions,Estates Capacity,WATES CONSTRUCTION LTD,3771887,"259,066.47"
MOJ,NOMS,24/11/2010,Contracted-out Escorts,Prisoner Escort & Custody Service (PECS),RELIANCE SECURE TASK MANAGEMENT,3778931,"257,313.66"
MOJ,NOMS,01/11/2010,Contracted-out Escorts,Prisoner Escort & Custody Service (PECS),RELIANCE SECURE TASK MANAGEMENT,3732535,"257,313.66"
MOJ,NOMS,12/11/2010,Contracted-out Resettlement Services,Newday ESF,WORKING LINKS,3761724,"253,145.45"
MOJ,NOMS,05/11/2010,WIP - Acquisitions,Estates Capacity,HENRY BOOT CONSTRUCTION (U K) LTD,3763687,"249,014.38"
MOJ,NOMS,16/11/2010,WIP - Acquisitions,Estates Capacity,INTERSERVE PROJECT SERVICES LTD,3778994,"244,067.58"
MOJ,NOMS,17/11/2010,Contracted-out Other Services,Quantum,HP ENTERPRISE SERVICES UK LTD,3781831,"241,948.59"
MOJ,NOMS,03/11/2010,WIP - Acquisitions,Estates Capacity,ISG REGIONS LTD,3761116,"238,255.93"
MOJ,NOMS,09/11/2010,WIP - Acquisitions,MoJ ICT,HP ENTERPRISE SERVICES UK LTD,3752182,"235,819.96"
MOJ,NOMS,04/11/2010,Contracted-out Computer Services,Quantum,HP ENTERPRISE SERVICES UK LTD,3762717,"235,671.94"
MOJ,NOMS,01/11/2010,Contracted-out Resettlement Services,NOMS CFO,LONDON PROBATION TRUST,3737466,"227,648.00"
MOJ,NOMS,05/11/2010,Prison Shop Cost of Sales (No VAT),Chief Operating Officers Office,EXEL EUROPE1 LTD,3762016,"222,095.60"
MOJ,NOMS,03/11/2010,Contract IT Maintenance,NOMS ICT,HP ENTERPRISE SERVICES UK LTD,3756560,"221,679.15"
MOJ,NOMS,05/11/2010,WIP - Acquisitions,Estates Capacity,WATES CONSTRUCTION LTD,3761176,"219,119.88"
MOJ,NOMS,02/11/2010,Contracted-out Resettlement Services,NOMS CFO,A4E CONSULTING LTD,3752513,"216,265.40"
MOJ,NOMS,30/11/2010,Contracted-out Resettlement Services,NOMS CFO,SERCO LTD,3796697,"216,250.66"
MOJ,NOMS,30/11/2010,WIP - Acquisitions,Estates Capacity,SKANSKA JV PROJECTS LTD - PUBLIC,3791487,"216,084.84"
MOJ,NOMS,29/11/2010,Prison Shop Cost of Sales,Chief Operating Officers Office,EXEL EUROPE1 LTD,3794201,"208,999.41"
MOJ,NOMS,16/11/2010,WIP - Acquisitions,Estates Capacity,INTERSERVE PROJECT SERVICES LTD,3779157,"208,469.67"
MOJ,NOMS,12/11/2010,Prison Shop Cost of Sales (No VAT),Chief Operating Officers Office,EXEL EUROPE1 LTD,3773746,"203,094.40"
MOJ,NOMS,10/11/2010,Prison Shop Cost of Sales (No VAT),Chief Operating Officers Office,EXEL EUROPE1 LTD,3770839,"203,056.31"
MOJ,NOMS,18/11/2010,Prison Shop Cost of Sales (No VAT),Chief Operating Officers Office,EXEL EUROPE1 LTD,3780196,"199,513.88"
MOJ,NOMS,16/11/2010,WIP - Acquisitions,Estates Capacity,SKANSKA JV PROJECTS LTD - PUBLIC,3777526,"195,349.78"
MOJ,NOMS,17/11/2010,Contracted-out Other Services,Quantum,HP ENTERPRISE SERVICES UK LTD,3781797,"182,476.78"
MOJ,NOMS,10/11/2010,WIP - Acquisitions,MoJ ICT,HP ENTERPRISE SERVICES UK LTD,3752193,"174,604.53"
MOJ,NOMS,11/11/2010,Contract IT Maintenance,MoJ ICT,SUNGARD PUBLIC SECTOR LTD,3771053,"173,975.00"
MOJ,NOMS,16/11/2010,WIP - Acquisitions,Estates Capacity,INTERSERVE PROJECT SERVICES LTD,3766423,"173,900.00"
MOJ,NOMS,04/11/2010,WIP - Professional Fees,Estates Capacity,FAITHFUL + GOULD,3761085,"173,459.38"
MOJ,NOMS,09/11/2010,WIP - Acquisitions,Estates Capacity,WATES CONSTRUCTION LTD,3768515,"169,435.00"
MOJ,NOMS,23/11/2010,Contracted-out Resettlement Services,NOMS CFO,LONDON PROBATION TRUST,3788014,"164,183.26"
MOJ,NOMS,23/11/2010,Contracted-out Resettlement Services,NOMS CFO,LONDON PROBATION TRUST,3788015,"164,183.26"
MOJ,NOMS,17/11/2010,Contracted-out Building Maintenance,Brixton,CARILLION SERVICES 2006 LTD,3766362,"163,684.75"
MOJ,NOMS,01/11/2010,WIP - Acquisitions,Estates Capacity,CARILLION CONSTRUCTION LTD,3757076,"163,348.50"
MOJ,NOMS,17/11/2010,Professional Advice,High Security Prisons Group,TREASURY SOLICITORS,3782138,"160,514.76"
MOJ,NOMS,08/11/2010,Specialist Contractors,Public Sector Bids Unit,P A CONSULTING SERVICES LTD,3766643,"158,184.38"
MOJ,NOMS,01/11/2010,Contracted-out Probation Trusts,Chelmsford,ESSEX PROBATION TRUST,3744566,"155,632.05"
MOJ,NOMS,17/11/2010,Contracted-out Other Services,Quantum,HP ENTERPRISE SERVICES UK LTD,3781820,"153,936.97"
MOJ,NOMS,09/11/2010,WIP - Acquisitions,Estates Capacity,HENRY BOOT CONSTRUCTION (U K) LTD,3767450,"150,988.68"
MOJ,NOMS,10/11/2010,Contracted-out Probation Boards,London DOMS Office,LONDON PROBATION TRUST,3771698,"150,000.00"
MOJ,NOMS,30/11/2010,"Staff Compensation over 5,000",North West DOMS Office,TREASURY SOLICITORS,3796609,"149,145.66"
MOJ,NOMS,12/11/2010,WIP - Acquisitions,Estates Capacity,ISG REGIONS LTD,3774815,"149,092.23"
MOJ,NOMS,09/11/2010,WIP - Acquisitions,Estates Capacity,VINCI CONSTRUCTION UK LTD,3768226,"146,464.93"
MOJ,NOMS,18/11/2010,Subsistence,HOPS Payroll Charge,CALDER CONFERENCE,3784549,"143,176.17"
MOJ,NOMS,29/11/2010,Contracted-out Computer Services,NOMIS Programme,STERIA LTD,3794190,"139,125.00"
MOJ,NOMS,29/11/2010,WIP - Acquisitions,Estates Capacity,CARILLION JM LIMITED,3795191,"136,538.53"
MOJ,NOMS,26/11/2010,Contracted-out Medical services,Whitemoor,CAMBRIDGESHIRE & PETERBOROUGH MENTAL HEALTH PARTNERSHIP,3791346,"134,556.00"
MOJ,NOMS,30/11/2010,Legal Representation,Chief Operating Officers Office,HER MAJESTY'S COURTS SERVICE,3796563,"130,158.65"
MOJ,NOMS,04/11/2010,Contracted-out Resettlement Services,NOMS CFO,THE MANCHESTER COLLEGE,3760610,"129,794.26"
MOJ,NOMS,29/11/2010,Contracted-out Resettlement Services,NOMS CFO,THE MANCHESTER COLLEGE,3789070,"129,794.26"
MOJ,NOMS,19/11/2010,Payments to voluntary Organisations,Business and Service Development Group,SOVA,3752622,"126,286.00"
MOJ,NOMS,26/11/2010,Probation - Approved Premisis,Public Protection and Mental Health Group,LANGLEY HOUSE TRUST,3793843,"125,100.08"
MOJ,NOMS,03/11/2010,Contracted-out Resettlement Services,NOMS CFO,THE MANCHESTER COLLEGE,3760608,"124,146.83"
MOJ,NOMS,22/11/2010,Resource Grants / Grant-in-Aid,Area Services,WOMEN IN PRISON,3786704,"123,690.00"
MOJ,NOMS,08/11/2010,Contracted-out Building Maintenance,Estates Capacity,HOME OFFICE - AFU CASH MANAGEMENT,3766051,"122,500.00"
MOJ,NOMS,30/11/2010,WIP - Acquisitions,Estates Capacity,LOWDHAM GRANGE PRISON SERVICES LTD,3788859,"121,761.73"
MOJ,NOMS,15/11/2010,Contract IT Maintenance,MoJ ICT,HP ENTERPRISE SERVICES UK LTD,3776887,"121,306.66"
MOJ,NOMS,18/11/2010,WIP - Acquisitions,Estates Capacity,WATES CONSTRUCTION LTD,3761143,"117,656.97"
MOJ,NOMS,11/11/2010,Occupational Health Services,MOJ Project & ATOS,ATOS ORIGIN IT SERVICES UK LTD,3772297,"117,625.15"
MOJ,NOMS,02/11/2010,Contracted-out operation of prisons and detention centres,Parc,BRIDGEND CUSTODIAL SERVICES LTD,3748148,"117,194.81"
MOJ,NOMS,19/11/2010,Contracted-out Resettlement Services,NOMS CFO,MERSEYSIDE PROBATION TRUST,3781599,"117,121.27"
MOJ,NOMS,24/11/2010,WIP - Acquisitions,Estates Capacity,CRISPIN & BORST LTD,3770832,"116,849.05"
MOJ,NOMS,23/11/2010,Contracted-out Probation Boards,Manchester,GREATER MANCHESTER PROBATION TRUST,3787915,"116,633.20"
MOJ,NOMS,09/11/2010,Counselling & Advisory Costs,ROM - Yorkshire & Humberside,LIFELINE PROJECT,3766235,"116,463.13"
MOJ,NOMS,04/11/2010,Contracted-out Resettlement Services,NOMS CFO,A4E CONSULTING LTD,3760612,"115,896.32"
MOJ,NOMS,29/11/2010,WIP - Acquisitions,NOMIS Programme,STERIA LTD,3794192,"113,922.92"
MOJ,NOMS,16/11/2010,WIP - Acquisitions,Estates Capacity,INTERSERVE PROJECT SERVICES LTD,3779158,"113,007.97"
MOJ,NOMS,22/11/2010,WIP - Acquisitions,Estates Capacity,KIER REGIONAL LTD,3785140,"112,849.35"
MOJ,NOMS,19/11/2010,Consumables,Procurement Group,JIANGSU SUNSHINE IMPORT & EXPORT CO LTD,3784614,"112,130.87"
MOJ,NOMS,18/11/2010,Contracted-out Other Services,North East DOMS Office,TEES ESK AND WEAR VALLEYS NHS TRUST,3760531,"108,763.75"
MOJ,NOMS,29/11/2010,Subsistence,HOPS Payroll Charge,CALDER CONFERENCE,3793908,"107,461.60"
MOJ,NOMS,18/11/2010,Consultancy,Estates Capacity,DELOITTE MCS LTD,3766248,"106,498.59"
MOJ,NOMS,29/11/2010,Contracted-out Probation Trusts,South East DOMS Office,KENT PROBATION TRUST,3796416,"103,602.00"
MOJ,NOMS,03/11/2010,Contracted-out Probation Trusts,South East DOMS Office,KENT PROBATION TRUST,3761422,"103,602.00"
MOJ,NOMS,17/11/2010,Contracted-out Building Maintenance,Isis,CARILLION CONSTRUCTION LTD,3766363,"103,146.98"
MOJ,NOMS,05/11/2010,Contracted-out operation of prisons and detention centres,Parc,BRIDGEND CUSTODIAL SERVICES LTD,3763100,"101,370.00"
MOJ,NOMS,05/11/2010,Contracted-out Building Maintenance,Estates Capacity,HOME OFFICE - AFU CASH MANAGEMENT,3754132,"101,338.43"
MOJ,NOMS,19/11/2010,WIP - Acquisitions,Estates Capacity,KIER REGIONAL LTD,3730001,"100,205.18"
MOJ,NOMS,02/11/2010,Clothing,Offender Employment Skills & Services Group,BURLINGTON UNIFORMS LTD,3746489,"98,643.60"
MOJ,NOMS,18/11/2010,WIP - Acquisitions,Estates Capacity,CARILLION JM LIMITED,3770938,"98,432.23"
MOJ,NOMS,10/11/2010,WIP - Acquisitions,Estates Capacity,CARILLION JM LIMITED,3770938,"98,432.23"
MOJ,NOMS,10/11/2010,WIP - Acquisitions,Estates Capacity,CARILLION JM LIMITED,3770939,"98,246.45"
MOJ,NOMS,18/11/2010,WIP - Acquisitions,Estates Capacity,CARILLION JM LIMITED,3770939,"98,246.45"
MOJ,NOMS,02/11/2010,Clothing,Offender Employment Skills & Services Group,BURLINGTON UNIFORMS LTD,3714102,"97,876.38"
MOJ,NOMS,22/11/2010,Resource Grants / Grant-in-Aid,Area Services,JAGONARI,3786703,"97,500.00"
MOJ,NOMS,29/11/2010,WIP - Acquisitions,Estates Capacity,CARILLION JM LIMITED,3795005,"96,944.55"
MOJ,NOMS,04/11/2010,Subsistence,HOPS Payroll Charge,CALDER CONFERENCE,3762460,"96,297.10"
MOJ,NOMS,22/11/2010,Gas,Kirkham,COFATHEC ENERGY PFI LTD,3777637,"95,606.57"
MOJ,NOMS,02/11/2010,Contracted-out Probation Trusts,South East DOMS Office,THAMES VALLEY PROBATION TRUST,3757816,"94,395.48"
MOJ,NOMS,18/11/2010,Training and Further Education Courses,MOJ Shared Services NOMS Delivery,LEEDS COLLEGE OF BUILDING,3733085,"92,863.15"
MOJ,NOMS,18/11/2010,WIP - Acquisitions,MoJ ICT,HP ENTERPRISE SERVICES UK LTD,3752192,"92,570.61"
MOJ,NOMS,23/11/2010,Contracted-out Other Services,National Operations Group,HOME GROUP LTD (STONHAM),3777532,"92,352.00"
MOJ,NOMS,17/11/2010,WIP - Acquisitions,Estates Capacity,VINCI CONSTRUCTION UK LTD,3780516,"90,916.80"
MOJ,NOMS,19/11/2010,Contracted-out Probation Boards,Bristol,AVON AND SOMERSET PROBATION TRUST,3750848,"89,599.35"
MOJ,NOMS,02/11/2010,Contracted-out operation of prisons and detention centres,NOMS Cymru Regional Services,BRIDGEND CUSTODIAL SERVICES LTD,3748107,"88,940.80"
MOJ,NOMS,16/11/2010,WIP - Acquisitions,Estates Capacity,INTERSERVE PROJECT SERVICES LTD,3779156,"88,775.95"
MOJ,NOMS,09/11/2010,WIP - Acquisitions,Estates Capacity,CARILLION JM LIMITED,3745281,"88,408.18"
MOJ,NOMS,01/11/2010,WIP - Acquisitions,Estates Capacity,CARILLION JM LIMITED,3745281,"88,408.18"
MOJ,NOMS,12/11/2010,Contracted-out Probation Trusts,Avon and Somerset Probation Trust,AVON AND SOMERSET PROBATION TRUST,3772797,"88,000.00"
MOJ,NOMS,03/11/2010,Contracted-out Resettlement Services,NOMS CFO,LEICESTERSHIRE&RUTLAND PROBATION TRUST,3760091,"87,697.20"
MOJ,NOMS,02/11/2010,Contracted-out Resettlement Services,NOMS CFO,SOVA,3752437,"87,325.14"
MOJ,NOMS,30/11/2010,Rates and Ground Rents,Estates Capacity,GREENWICH COUNCIL,3472444,"86,366.00"
MOJ,NOMS,10/11/2010,Subsistence,HOPS Payroll Charge,CALDER CONFERENCE,3772272,"85,209.11"
MOJ,NOMS,24/11/2010,WIP - Acquisitions,Estates Capacity,KIER REGIONAL LTD,3789392,"84,509.53"
MOJ,NOMS,01/11/2010,WIP - Acquisitions,Estates Capacity,CARILLION JM LIMITED,3730633,"84,370.57"
MOJ,NOMS,09/11/2010,WIP - Acquisitions,Estates Capacity,CARILLION JM LIMITED,3730633,"84,370.57"
MOJ,NOMS,09/11/2010,WIP - Professional Fees,Estates Capacity,JACOBS ENGINEERING UK,3764970,"84,301.19"
MOJ,NOMS,16/11/2010,Travel - Non-Taxable,HOPS Payroll Charge,CARLSON WAGONLIT TRAVEL,3779317,"84,113.79"
MOJ,NOMS,05/11/2010,WIP - Professional Fees,Estates Capacity,AEDAS ARCHITECTS LTD,3751703,"83,540.08"
MOJ,NOMS,09/11/2010,Contracted-out Resettlement Services,NOMS CFO,PERTEMPS PEOPLE DEVELOPMENT GROUP,3766561,"82,917.65"
MOJ,NOMS,05/11/2010,Contracted-out operation of prisons and detention centres,Parc,BRIDGEND CUSTODIAL SERVICES LTD,3763103,"82,137.60"
MOJ,NOMS,15/11/2010,In Cell TV Costs,Unallocated Budgets,COMPUTACENTER (U K) LTD,3774744,"80,711.41"
MOJ,NOMS,02/11/2010,Contracted-out Resettlement Services,NOMS CFO,SERCO LTD,3758757,"80,242.21"
MOJ,NOMS,30/11/2010,Contracted-out Resettlement Services,NOMS CFO,SERCO LTD,3796419,"80,242.21"
MOJ,NOMS,05/11/2010,Contracted-out Resettlement Services,NOMS CFO,SERCO LTD,3753007,"80,106.00"
MOJ,NOMS,02/11/2010,Contracted-out Resettlement Services,NOMS CFO,SERCO LTD,3758754,"79,781.05"
MOJ,NOMS,02/11/2010,Contracted-out Resettlement Services,NOMS CFO,SERCO LTD,3758753,"79,781.05"
MOJ,NOMS,02/11/2010,Contracted-out Resettlement Services,NOMS CFO,SERCO LTD,3758752,"79,781.05"
MOJ,NOMS,29/11/2010,Contracted-out Resettlement Services,NOMS CFO,SERCO LTD,3796418,"79,781.05"
MOJ,NOMS,02/11/2010,Contracted-out Resettlement Services,NOMS CFO,SERCO LTD,3758751,"79,644.00"
MOJ,NOMS,08/11/2010,Clothing,Offender Employment Skills & Services Group,JAMES WALKER TEXTILES LIMITED,3766633,"79,156.37"
MOJ,NOMS,03/11/2010,Contracted-out Probation Trusts,Wales Probation Trust,WALES PROBATION TRUST,3757919,"78,764.82"
MOJ,NOMS,24/11/2010,Specialist Contractors,Performance Information and Analysis Group,PRICEWATERHOUSECOOPERS LLP,3789583,"78,754.49"
MOJ,NOMS,16/11/2010,WIP - Acquisitions,Estates Capacity,INTERSERVE PROJECT SERVICES LTD,3774954,"77,654.58"
MOJ,NOMS,09/11/2010,Contracted-out operation of prisons and detention centres,Parc,BRIDGEND CUSTODIAL SERVICES LTD,3763099,"76,849.00"
MOJ,NOMS,19/11/2010,Contract IT Maintenance,Procurement Group,HP ENTERPRISE SERVICES UK LTD,3766483,"75,891.38"
MOJ,NOMS,18/11/2010,Raw Materials Issued,Offender Employment Skills & Services Group,L & P (PSCS),3783164,"75,596.86"
MOJ,NOMS,15/11/2010,WIP - Acquisitions,Estates Capacity,HENRY BOOT CONSTRUCTION (U K) LTD,3777295,"75,200.00"
MOJ,NOMS,02/11/2010,Contracted-out Resettlement Services,NOMS CFO,SOVA,3752416,"75,169.41"
MOJ,NOMS,22/11/2010,WIP - Professional Fees,Estates Capacity,JACOBS ENGINEERING UK,3783384,"73,698.77"
MOJ,NOMS,09/11/2010,Travel - Non-Taxable,HOPS Payroll Charge,CARLSON WAGONLIT TRAVEL,3769179,"73,641.28"
MOJ,NOMS,05/11/2010,"New structural works, structural maintenance and equipment",Feltham,WEALDEN SERVICES LTD,3744376,"73,502.13"
MOJ,NOMS,17/11/2010,Contracted-out Resettlement Services,NOMS CFO,MERSEYSIDE PROBATION TRUST,3781598,"72,857.28"
MOJ,NOMS,09/11/2010,Training and Further Education Courses,Learning and Development Group,UNIVERSITY OF HERTFORDSHIRE,3766451,"72,459.00"
MOJ,NOMS,03/11/2010,Contracted-out Probation Trusts,West Yorkshire Probation Trust,WEST YORKSHIRE PROBATION TRUST,3760555,"71,500.00"
MOJ,NOMS,02/11/2010,Contracted-out Resettlement Services,NOMS CFO,SERCO LTD,3758761,"69,755.20"
MOJ,NOMS,16/11/2010,WIP - Acquisitions,Estates Capacity,INTERSERVE PROJECT SERVICES LTD,3766422,"69,325.00"
MOJ,NOMS,02/11/2010,VISA Costs,MOJ Shared Services NOMS Delivery,ARVAL UK LTD,3758728,"68,957.33"
MOJ,NOMS,30/11/2010,Travel - Non-Taxable,HOPS Payroll Charge,CARLSON WAGONLIT TRAVEL,3796628,"68,732.94"
MOJ,NOMS,12/11/2010,Contract IT Maintenance,MoJ ICT,HP ENTERPRISE SERVICES UK LTD,3771645,"67,646.79"
MOJ,NOMS,09/11/2010,Inter-Unit Charge (IUC),Hewell,SHAYLOR CONSTRUCTION LTD,3745395,"67,515.50"
MOJ,NOMS,17/11/2010,WIP - Acquisitions,NOMS ICT,HP ENTERPRISE SERVICES UK LTD,3771773,"67,316.77"
MOJ,NOMS,09/11/2010,WIP - Acquisitions,Estates Capacity,CRISPIN & BORST LTD,3767766,"66,779.49"
MOJ,NOMS,29/11/2010,WIP - Acquisitions,Estates Capacity,CARILLION JM LIMITED,3795093,"66,756.45"
MOJ,NOMS,08/11/2010,Electricity,Wymott,EDF ENERGY,3766719,"66,669.05"
MOJ,NOMS,29/11/2010,Subsistence,HOPS Payroll Charge,CALDER CONFERENCE,3793907,"66,620.47"
MOJ,NOMS,10/11/2010,Contracted-out Other Services,Dartmoor,COFATHEC ENERGY SERVICES UK LTD,3770730,"65,620.27"
MOJ,NOMS,29/11/2010,"Books, Stationery & IT Consumables",Offender Employment Skills & Services Group,CARPENTER LTD,3786530,"65,132.53"
MOJ,NOMS,17/11/2010,Contracted-out Computer Services,Quantum,HP ENTERPRISE SERVICES UK LTD,3781824,"65,100.36"
MOJ,NOMS,19/11/2010,Miscellaneous,Chief Operating Officers Office,NPIA,3784341,"65,003.40"
MOJ,NOMS,09/11/2010,WIP - Acquisitions,MoJ ICT,HP ENTERPRISE SERVICES UK LTD,3752194,"64,922.46"
MOJ,NOMS,03/11/2010,Contracted-out operation of prisons and detention centres,Dovegate,MORETON PRISON SERVICES LTD,3759273,"64,728.00"
MOJ,NOMS,12/11/2010,Gas,Pentonville,COFATHEC ENERGY PFI LTD,3775985,"64,680.21"
MOJ,NOMS,23/11/2010,WIP - Acquisitions,Estates Capacity,HENRY BOOT CONSTRUCTION (U K) LTD,3776985,"64,327.73"
MOJ,NOMS,02/11/2010,Contracted-out Resettlement Services,NOMS CFO,SOVA,3752439,"64,101.54"
MOJ,NOMS,02/11/2010,Contracted-out operation of prisons and detention centres,Parc,BRIDGEND CUSTODIAL SERVICES LTD,3748152,"64,095.48"
MOJ,NOMS,02/11/2010,VISA Costs,MOJ Shared Services NOMS Delivery,ARVAL UK LTD,3758729,"63,397.70"
MOJ,NOMS,22/11/2010,Counselling & Advisory Costs,Pentonville,R A P T,3786800,"63,090.62"
MOJ,NOMS,15/11/2010,WIP - Professional Fees,Estates Capacity,ATKINS LTD,3761453,"62,811.86"
MOJ,NOMS,23/11/2010,Payments to voluntary Organisations,East of England Regional NOMS Office,ORMISTON CHILDREN & FAMILIES TRUST,3764820,"62,802.00"
MOJ,NOMS,09/11/2010,WIP - Acquisitions,Estates Capacity,HENRY BOOT CONSTRUCTION (U K) LTD,3767451,"62,734.43"
MOJ,NOMS,04/11/2010,Resource Grants / Grant-in-Aid,Wales/Cymru DOMS Office,SAFER WALES LTD,3738823,"62,500.00"
MOJ,NOMS,30/11/2010,Rates and Ground Rents,Estates Capacity,MILTON KEYNES COUNCIL,3472363,"62,100.00"
MOJ,NOMS,02/11/2010,Contracted-out Resettlement Services,NOMS CFO,SERCO LTD,3758749,"61,824.42"
MOJ,NOMS,15/11/2010,Contracted-out Other Services,Gartree,COFATHEC ENERGY PFI LTD,3776784,"61,733.71"
MOJ,NOMS,02/11/2010,Contracted-out Catering Services,MOJ Shared Services NOMS Delivery,ESS SUPPORT SERVICES WORLDWIDE,3758827,"61,564.76"
MOJ,NOMS,08/11/2010,Professional Advice,Estates Capacity,HVCA,3768402,"61,000.00"
MOJ,NOMS,24/11/2010,Travel - Non-Taxable,HOPS Payroll Charge,CARLSON WAGONLIT TRAVEL,3787921,"60,721.01"
MOJ,NOMS,09/11/2010,WIP - Acquisitions,MoJ ICT,HP ENTERPRISE SERVICES UK LTD,3752196,"60,331.03"
MOJ,NOMS,23/11/2010,Drugs,Rochester,A A H PHARMACEUTICALS LTD,3788027,"60,264.92"
MOJ,NOMS,24/11/2010,"Prisoner Compensation over 5,000",Chief Operating Officers Office,TREASURY SOLICITORS,3790920,"60,000.00"
MOJ,NOMS,18/11/2010,Contracted-out Other Services,North East DOMS Office,TEES ESK AND WEAR VALLEYS NHS TRUST,3760530,"60,000.00"
MOJ,NOMS,02/11/2010,Contracted-out operation of prisons and detention centres,Parc,BRIDGEND CUSTODIAL SERVICES LTD,3748151,"59,965.74"
MOJ,NOMS,09/11/2010,Drugs,Rochester,A A H PHARMACEUTICALS LTD,3769210,"58,959.53"
MOJ,NOMS,19/11/2010,WIP - Professional Fees,Estates Capacity,TURNER & TOWNSEND,3755020,"58,825.24"
MOJ,NOMS,15/11/2010,WIP - Acquisitions,Estates Capacity,ISG REGIONS LTD,3777473,"58,819.33"
MOJ,NOMS,02/11/2010,Contracted-out Resettlement Services,NOMS CFO,SERCO LTD,3758760,"58,173.60"
MOJ,NOMS,02/11/2010,Travel - Non-Taxable,HOPS Payroll Charge,CARLSON WAGONLIT TRAVEL,3758730,"58,111.77"
MOJ,NOMS,09/11/2010,Drugs,Rochester,A A H PHARMACEUTICALS LTD,3769212,"57,941.13"
MOJ,NOMS,15/11/2010,Contracted-out Other Services,New Hall,COFATHEC ENERGY PFI LTD,3777636,"57,920.71"
MOJ,NOMS,30/11/2010,Rates and Ground Rents,Estates Capacity,LB OF HAMMERSMITH AND FULHAM,3495013,"57,722.00"
MOJ,NOMS,01/11/2010,"Books, Stationery & IT Consumables",Offender Employment Skills & Services Group,CARPENTER LTD,3756421,"57,449.72"
MOJ,NOMS,04/11/2010,Contracted-out operation of prisons and detention centres,Dovegate,MORETON PRISON SERVICES LTD,3759272,"57,401.19"
MOJ,NOMS,10/11/2010,Contracted-out Other Services,IW Cluster,COFATHEC ENERGY SERVICES UK LTD,3772048,"57,063.50"
MOJ,NOMS,26/11/2010,Probation - Approved Premisis,Public Protection and Mental Health Group,HESTIA HOUSING SUPPORT CO LTD REF BATTERSEA & STREATHAM,3793841,"56,750.00"
MOJ,NOMS,29/11/2010,Specialist Contractors,Estates Capacity,DRIVERS JONAS DELOITTE,3788655,"56,347.13"
MOJ,NOMS,26/11/2010,Probation - Approved Premisis,Public Protection and Mental Health Group,ELIZABETH FRY APPROVED PREMISES,3793839,"56,250.00"
MOJ,NOMS,10/11/2010,WIP - Acquisitions,Estates Capacity,KIER NORTHERN,3770852,"56,179.75"
MOJ,NOMS,26/11/2010,Probation - Approved Premisis,Public Protection and Mental Health Group,RIPON HOUSE,3793846,"56,083.33"
MOJ,NOMS,29/11/2010,WIP - Acquisitions,Estates Capacity,CARILLION JM LIMITED,3795006,"56,082.75"
MOJ,NOMS,05/11/2010,Electricity,Lindholme,EDF ENERGY,3764428,"55,816.89"
MOJ,NOMS,30/11/2010,Rates and Ground Rents,Estates Capacity,CHERWELL DISTRICT COUNCIL,3472451,"55,476.00"
MOJ,NOMS,30/11/2010,Rates and Ground Rents,Estates Capacity,REIGATE & BANSTEAD BOROUGH COUNCIL,3508304,"54,234.00"
MOJ,NOMS,15/11/2010,Contract IT Maintenance,MoJ ICT,HP ENTERPRISE SERVICES UK LTD,3776869,"53,768.43"
MOJ,NOMS,16/11/2010,Counselling & Advisory Costs,Wandsworth,R A P T,3779410,"52,356.60"
MOJ,NOMS,26/11/2010,Probation - Approved Premisis,Public Protection and Mental Health Group,WEST LONDON MISSION REF: KATHERINE HUGHES HOUSE,3793851,"52,333.33"
MOJ,NOMS,10/11/2010,Contracted-out Other Services,Deerbolt,COFATHEC ENERGY SERVICES UK LTD,3772045,"52,057.73"
MOJ,NOMS,26/11/2010,Probation - Approved Premisis,Public Protection and Mental Health Group,ST JOHN'S APPROVED PREMISES,3793849,"51,666.67"
MOJ,NOMS,29/11/2010,WIP - Acquisitions,NOMS ICT,HP ENTERPRISE SERVICES UK LTD,3787693,"51,316.77"
MOJ,NOMS,26/11/2010,Probation - Approved Premisis,Public Protection and Mental Health Group,ADELAIDE HOUSE,3793835,"51,166.67"
MOJ,NOMS,16/11/2010,Counselling & Advisory Costs,Hewell,SOUTH STAFFORDSHIRE AND SHROPSHIRE HEALTHCARE NHS FOUNDATION TRUST,3779292,"50,833.19"
MOJ,NOMS,09/11/2010,Contracted-out operation of prisons and detention centres,Peterborough,PETERBOROUGH PRISON MANAGEMENT LTD,3766023,"50,577.12"
MOJ,NOMS,30/11/2010,Rates and Ground Rents,Estates Capacity,NORTHUMBERLAND COUNTY COUNCIL,3472413,"50,508.00"
MOJ,NOMS,26/11/2010,Probation - Approved Premisis,Public Protection and Mental Health Group,ST. VINCENT DE PAUL SOCIETY REF OZANAM HOUSE,3793847,"50,416.67"
MOJ,NOMS,26/11/2010,Probation - Approved Premisis,Public Protection and Mental Health Group,CARDIGAN HOUSE APPROVED PREMISE,3793838,"50,250.00"
MOJ,NOMS,03/11/2010,Contracted-out Probation Trusts,Wiltshire Probation Trust,WILTSHIRE PROBATION TRUST,3759890,"50,000.00"
MOJ,NOMS,29/11/2010,"Books, Stationery & IT Consumables",Offender Employment Skills & Services Group,CARPENTER LTD,3794914,"49,766.92"
MOJ,NOMS,12/11/2010,Contract IT Maintenance,Public Protection and Mental Health Group,HOME OFFICE - AFU CASH MANAGEMENT,3761455,"49,655.88"
MOJ,NOMS,09/11/2010,Contracted-out operation of prisons and detention centres,Bronzefield,ASHFORD PRISON SERVICES LIMITED,3766156,"49,391.36"
MOJ,NOMS,15/11/2010,Structural works / maintenance - Fees & professional services,Estates Capacity,JACOBS ENGINEERING UK,3776692,"49,374.31"
MOJ,NOMS,26/11/2010,Probation - Approved Premisis,Public Protection and Mental Health Group,ASHLEY HOUSE,3793836,"48,583.33"
MOJ,NOMS,09/11/2010,WIP - Professional Fees,Estates Capacity,AEDAS ARCHITECTS LTD,3768459,"48,266.90"
MOJ,NOMS,17/11/2010,WIP - Professional Fees,Estates Capacity,AEDAS ARCHITECTS LTD,3735513,"48,266.88"
MOJ,NOMS,17/11/2010,Contracted-out Computer Services,Quantum,HP ENTERPRISE SERVICES UK LTD,3781826,"48,094.17"
MOJ,NOMS,04/11/2010,Subsistence,HOPS Payroll Charge,CALDER CONFERENCE,3762448,"48,060.23"
MOJ,NOMS,22/11/2010,Payments to voluntary Organisations,East of England Regional NOMS Office,NACRO NCT (EAST ANGLIA),3785393,"47,479.00"
MOJ,NOMS,11/11/2010,Contracted-out Probation Boards,Wandsworth,LONDON PROBATION TRUST,3770794,"47,001.99"
MOJ,NOMS,23/11/2010,Payments to voluntary Organisations,East of England Regional NOMS Office,NACRO NCT (EAST ANGLIA),3785392,"46,927.52"
MOJ,NOMS,09/11/2010,Recreation,Chief Operating Officers Office,FILMBANK DISTRIBUTORS LTD,3771998,"46,882.50"
MOJ,NOMS,30/11/2010,Rates and Ground Rents,Estates Capacity,HUNTINGDONSHIRE DISTRICT COUNCIL,3495015,"46,782.00"
MOJ,NOMS,26/11/2010,Probation - Approved Premisis,Public Protection and Mental Health Group,HESTIA HOUSING SUPPORT CO LTD REF BATTERSEA & STREATHAM,3793840,"46,583.33"
MOJ,NOMS,17/11/2010,Specialist Contractors,Procurement Group,CAPGEMINI UK PLC,3781225,"46,530.00"
MOJ,NOMS,16/11/2010,Contracted-out Other Services,Wealstun,COFATHEC ENERGY PFI LTD,3742155,"46,240.97"
MOJ,NOMS,26/11/2010,Probation - Approved Premisis,Public Protection and Mental Health Group,ST. VINCENT DE PAUL SOCIETY REF ST CHRISTOPHERS,3793848,"46,166.67"
MOJ,NOMS,24/11/2010,Assets costing less than 10k purchased out of capital receipts from OGDs,Whitemoor,WILTS WHOLESALE ELECTRICAL CO LTD,3720334,"46,108.76"
MOJ,NOMS,24/11/2010,Water and Sewage,Hewell,SEVERN TRENT WATER LTD,3766892,"45,987.85"
MOJ,NOMS,16/11/2010,Contracted-out Probation Trusts,Durham,DURHAM TEES VALLEY PROBATION TRUST,3779026,"45,883.59"
MOJ,NOMS,17/11/2010,Water and Sewage,Holloway,THAMES WATER UTILITIES LTD,3779284,"45,846.24"
MOJ,NOMS,10/11/2010,Specialist Contractors,MoJ ICT,GREATER MANCHESTER PROBATION TRUST,3771976,"45,472.48"
MOJ,NOMS,16/11/2010,Contracted-out Other Services,Drake Hall,COFATHEC ENERGY PFI LTD,3745155,"45,399.19"
MOJ,NOMS,17/11/2010,Contract IT Maintenance,MoJ ICT,TRIBAL CONSULTING,3661177,"45,112.00"
MOJ,NOMS,02/11/2010,Contracted-out Resettlement Services,NOMS CFO,SOVA,3752440,"44,919.75"
MOJ,NOMS,30/11/2010,Rates and Ground Rents,Estates Capacity,SWALE BOROUGH COUNCIL,3472344,"44,712.00"
MOJ,NOMS,01/11/2010,Secondments,Public Protection and Mental Health Group,STAFFORDSHIRE AND WEST MIDLANDS PROBATION TRUST,3756910,"44,627.71"
MOJ,NOMS,23/11/2010,WIP - Acquisitions,Estates Capacity,VINCI CONSTRUCTION UK LTD,3744624,"44,297.50"
MOJ,NOMS,19/11/2010,Specialist Contractors,Procurement Group,CAPGEMINI UK PLC,3744147,"43,944.41"
MOJ,NOMS,15/11/2010,Contract IT Maintenance,MoJ ICT,HP ENTERPRISE SERVICES UK LTD,3776868,"43,864.11"
MOJ,NOMS,04/11/2010,Contracted-out Resettlement Services,NOMS CFO,LEICESTERSHIRE&RUTLAND PROBATION TRUST,3674338,"43,776.00"
MOJ,NOMS,22/11/2010,Contracted-out Probation Trusts,Nottingham,NOTTINGHAMSHIRE PROBATION TRUST,3722457,"43,543.66"
MOJ,NOMS,30/11/2010,Rates and Ground Rents,Estates Capacity,PETERBOROUGH CITY COUNCIL,3472305,"43,470.00"
MOJ,NOMS,01/11/2010,WIP - Professional Fees,Estates Capacity,JACOBS ENGINEERING UK,3716482,"43,299.36"
MOJ,NOMS,02/11/2010,Contracted-out Probation Trusts,Rehabilitation Services Group,DERBYSHIRE PROBATION TRUST,3757793,"43,176.80"
MOJ,NOMS,03/11/2010,Contracted-out operation of prisons and detention centres,Lowdham Grange,LOWDHAM GRANGE PRISON SERVICES LTD,3760059,"43,171.84"
MOJ,NOMS,10/11/2010,Contracted-out Other Services,IW Cluster,COFATHEC ENERGY SERVICES UK LTD,3770729,"43,081.96"
MOJ,NOMS,30/11/2010,Rates and Ground Rents,Estates Capacity,LIVERPOOL CITY COUNCIL,3478615,"43,056.00"
MOJ,NOMS,02/11/2010,Water and Sewage,Manchester,UNITED UTILITIES WATER PLC,3758828,"43,048.15"
MOJ,NOMS,19/11/2010,Specialist Contractors,Procurement Group,CAPGEMINI UK PLC,3744146,"43,005.00"
MOJ,NOMS,11/11/2010,Contracted-out Other Services,Blundeston,COFATHEC ENERGY SERVICES UK LTD,3770728,"42,992.38"
MOJ,NOMS,10/11/2010,Contracted-out Probation Boards,Nottingham,NOTTINGHAM PROBATION COMMITTEE,3771709,"42,952.60"
MOJ,NOMS,30/11/2010,Rates and Ground Rents,Estates Capacity,DONCASTER MET DIST COUNCIL,3472423,"42,927.39"
MOJ,NOMS,26/11/2010,Water and Sewage,Cardiff,DWR CMYRU WELSH WATER,3793887,"42,783.04"
MOJ,NOMS,26/11/2010,"New structural works, structural maintenance and equipment",Channings Wood,INTERSERVE PROJECT SERVICES LTD,3766341,"42,599.63"
MOJ,NOMS,15/11/2010,Contract IT Maintenance,MoJ ICT,TRIBAL CONSULTING,3777488,"42,375.00"
MOJ,NOMS,30/11/2010,Rates and Ground Rents,Estates Capacity,LONDON BOROUGH OF ISLINGTON.,3472762,"42,315.00"
MOJ,NOMS,05/11/2010,WIP - Professional Fees,Estates Capacity,SCOTT WILSON  LTD,3756385,"41,838.58"
MOJ,NOMS,08/11/2010,Electricity,Frankland,EDF ENERGY,3766668,"41,469.90"
MOJ,NOMS,03/11/2010,Other - Acquisitions,Leeds,ACTIVE ENERGY LTD,3734456,"41,368.23"
MOJ,NOMS,24/11/2010,Water and Sewage,Belmarsh,THAMES WATER UTILITIES LTD,3788025,"41,250.90"
MOJ,NOMS,11/11/2010,Contracted-out Probation Trusts,Whatton,NOTTINGHAMSHIRE PROBATION TRUST,3771711,"41,182.84"
MOJ,NOMS,15/11/2010,In Cell TV Costs,Unallocated Budgets,COMPUTACENTER (U K) LTD,3774434,"40,680.81"
MOJ,NOMS,16/11/2010,Counselling & Advisory Costs,Holloway,R A P T,3779375,"40,319.15"
MOJ,NOMS,02/11/2010,Contracted-out operation of prisons and detention centres,Parc,BRIDGEND CUSTODIAL SERVICES LTD,3748149,"40,196.81"
MOJ,NOMS,30/11/2010,Rates and Ground Rents,Estates Capacity,LIVERPOOL CITY COUNCIL,3475192,"40,158.00"
MOJ,NOMS,12/11/2010,In Cell TV Costs,Unallocated Budgets,COMPUTACENTER (U K) LTD,3773993,"40,126.80"
MOJ,NOMS,09/11/2010,"Prisoner Compensation over 5,000",Chief Operating Officers Office,TREASURY SOLICITORS,3769339,"40,000.00"
MOJ,NOMS,10/11/2010,Other Fuels,Chelmsford,COFATHEC ENERGY SERVICES UK LTD,3770731,"39,702.51"
MOJ,NOMS,02/11/2010,Contracted-out Probation Trusts,Wellingborough,NORTHAMPTONSHIRE PROBATION TRUST,3756826,"39,609.53"
MOJ,NOMS,30/11/2010,Rates and Ground Rents,Estates Capacity,LANCASTER CITY COUNCIL,3495020,"39,537.00"
MOJ,NOMS,24/11/2010,Specialist Contractors,Estates Capacity,DRIVERS JONAS DELOITTE,3788657,"39,372.42"
MOJ,NOMS,30/11/2010,Rates and Ground Rents,Estates Capacity,EAST RIDING OF YORKSHIRE COUNCIL,3485218,"39,330.00"
MOJ,NOMS,04/11/2010,Electricity,Belmarsh,EDF ENERGY,3762335,"39,234.32"
MOJ,NOMS,16/11/2010,Professional Advice,Security Group,LONDON PROBATION TRUST,3779199,"38,929.74"
MOJ,NOMS,23/11/2010,Contracted-out Computer Services,Quantum,HP ENTERPRISE SERVICES UK LTD,3788103,"38,852.00"
MOJ,NOMS,30/11/2010,Rates and Ground Rents,Estates Capacity,LONDON BOROUGH OF HOUNSLOW,3472763,"38,843.00"
MOJ,NOMS,30/11/2010,Rates and Ground Rents,Estates Capacity,WANDSWORTH BOROUGH COUNCIL,3472332,"38,843.00"
MOJ,NOMS,17/11/2010,Counselling & Advisory Costs,Bullingdon,R A P T,3781812,"38,773.23"
MOJ,NOMS,04/11/2010,WIP - Professional Fees,Estates Capacity,WT PARTNERSHIP,3759344,"38,653.95"
MOJ,NOMS,30/11/2010,Counselling & Advisory Costs,Eastwood Park,AVON & WILTSHIRE MENTAL HEALTH PARTNERSHIP N H S TRUST,3794240,"38,623.00"
MOJ,NOMS,05/11/2010,Secondments,Yorkshire and Humberside DOMS Office,WEST YORKSHIRE PROBATION TRUST,3739064,"38,466.00"
MOJ,NOMS,17/11/2010,Professional Advice,High Security Prisons Group,TREASURY SOLICITORS,3782135,"38,412.30"
MOJ,NOMS,26/11/2010,Legal Representation,Estates Capacity,EVERSHEDS LLP,3757125,"38,385.49"
MOJ,NOMS,08/11/2010,Contracted-out Resettlement Services,NOMS CFO,MERSEYSIDE PROBATION TRUST,3740546,"38,281.45"
MOJ,NOMS,08/11/2010,Contracted-out operation of prisons and detention centres,Peterborough,PETERBOROUGH PRISON MANAGEMENT LTD,3766204,"38,182.08"
MOJ,NOMS,18/11/2010,Counselling & Advisory Costs,Birmingham,SOUTH STAFFORDSHIRE AND SHROPSHIRE HEALTHCARE NHS FOUNDATION TRUST,3781739,"38,174.78"
MOJ,NOMS,19/11/2010,Contracted-out Medical services,Frankland,COUNTY DURHAM PRIMARY CARE TRUST,3784480,"38,061.00"
MOJ,NOMS,15/11/2010,In Cell TV Costs,Unallocated Budgets,COMPUTACENTER (U K) LTD,3774435,"38,014.68"
MOJ,NOMS,05/11/2010,Electricity,Manchester,EDF ENERGY,3764460,"37,970.61"
MOJ,NOMS,08/11/2010,Electricity,Wandsworth,EDF ENERGY,3766938,"37,924.91"
MOJ,NOMS,05/11/2010,Electricity,Acklington,EDF ENERGY,3764434,"37,858.93"
MOJ,NOMS,05/11/2010,Electricity,Highdown,EDF ENERGY,3764448,"37,790.91"
MOJ,NOMS,30/11/2010,Contracted-out Visitor's Centres,Belmarsh,PRISON ADVICE & CARE TRUST (P A C T),3794081,"37,750.00"
MOJ,NOMS,17/11/2010,Contracted-out Resettlement Services,ROM - Yorkshire & Humberside,SHELTER,3780660,"37,711.54"
MOJ,NOMS,24/11/2010,Contracted-out Library,Dartmoor,DEVON COUNTY COUNCIL,3756083,"37,706.22"
MOJ,NOMS,05/11/2010,Contracted-out Library,Dartmoor,DEVON COUNTY COUNCIL,3756083,"37,706.22"
MOJ,NOMS,03/11/2010,Secondments,Wales/Cymru DOMS Office,WALES PROBATION TRUST,3757621,"37,644.36"
MOJ,NOMS,08/11/2010,Water and Sewage,Glen Parva,SEVERN TRENT WATER LTD,3766859,"37,532.36"
MOJ,NOMS,08/11/2010,Contracted-out operation of prisons and detention centres,Peterborough,PETERBOROUGH PRISON MANAGEMENT LTD,3766026,"37,516.06"
MOJ,NOMS,04/11/2010,Resource Grants / Grant-in-Aid,Wales/Cymru DOMS Office,SAFER WALES LTD,3755936,"37,500.00"
MOJ,NOMS,30/11/2010,Rates and Ground Rents,Estates Capacity,BROMSGROVE DISTRICT COUNCIL,3472765,"37,467.00"
MOJ,NOMS,17/11/2010,Professional Advice,Procurement Group,SIMMONS & SIMMONS,3780884,"37,385.00"
MOJ,NOMS,16/11/2010,Water and Sewage,Thorn Cross,UNITED UTILITIES WATER PLC,3779243,"37,274.84"
MOJ,NOMS,04/11/2010,Consultancy,Estates Capacity,PICK EVERARD,3761218,"37,220.48"
MOJ,NOMS,08/11/2010,"Books, Stationery & IT Consumables",Offender Employment Skills & Services Group,CARPENTER LTD,3764774,"37,099.26"
MOJ,NOMS,30/11/2010,Rates and Ground Rents,Estates Capacity,BIRMINGHAM CITY COUNCIL,3508297,"37,053.00"
MOJ,NOMS,29/11/2010,WIP - Professional Fees,Estates Capacity,SCOTT WILSON  LTD,3794249,"36,966.59"
MOJ,NOMS,30/11/2010,Rates and Ground Rents,Estates Capacity,SPELTHORNE BOROUGH COUNCIL,3472297,"36,914.85"
MOJ,NOMS,03/11/2010,Contracted-out operation of prisons and detention centres,Lowdham Grange,LOWDHAM GRANGE PRISON SERVICES LTD,3759274,"36,786.79"
MOJ,NOMS,18/11/2010,Contracted-out Probation Trusts,South East DOMS Office,THAMES VALLEY PROBATION TRUST,3782928,"36,720.00"
MOJ,NOMS,30/11/2010,Contracted-out Probation Boards,Bure,NORFOLK AND SUFFOLK PROBATION TRUST,3795701,"36,678.10"
MOJ,NOMS,30/11/2010,Rates and Ground Rents,Estates Capacity,DACORUM BOROUGH COUNCIL,3472419,"36,564.76"
MOJ,NOMS,29/11/2010,Contract IT Maintenance,NOMS ICT,HP ENTERPRISE SERVICES UK LTD,3787693,"36,552.99"
MOJ,NOMS,10/11/2010,Incentive Schemes,Procurement Group,CIPS-GPA,3757708,"36,425.00"
MOJ,NOMS,15/11/2010,In Cell TV Costs,Unallocated Budgets,COMPUTACENTER (U K) LTD,3774588,"36,420.78"
MOJ,NOMS,04/11/2010,"New structural works, structural maintenance and equipment",Leeds,G WILKINSON CONSTRUCTION LTD,3760033,"36,215.85"
MOJ,NOMS,10/11/2010,Gas,Lewes,COFATHEC ENERGY SERVICES UK LTD,3772047,"36,060.59"
MOJ,NOMS,30/11/2010,Rates and Ground Rents,Estates Capacity,CHORLEY BOROUGH COUNCIL,3495011,"35,886.25"
MOJ,NOMS,11/11/2010,WIP - Acquisitions,Estates Capacity,MAYBOURNE & RUSSELL LTD,3744550,"35,795.20"
MOJ,NOMS,11/11/2010,Contracted-out Probation Boards,Pentonville,LONDON PROBATION TRUST,3770795,"35,788.83"
MOJ,NOMS,30/11/2010,Rates and Ground Rents,Estates Capacity,BRECKLAND DISTRICT COUNCIL,3472479,"35,397.00"
MOJ,NOMS,29/11/2010,Contracted-out Probation Trusts,Liverpool,MERSEYSIDE PROBATION TRUST,3727257,"35,350.66"
MOJ,NOMS,04/11/2010,Assets costing less than 10k purchased out of capital receipts from OGDs,East of England Regional NOMS Office,ACTIVE ENERGY LTD,3701836,"35,174.80"
MOJ,NOMS,17/11/2010,Counselling & Advisory Costs,Highdown,R A P T,3781850,"35,171.50"
MOJ,NOMS,16/11/2010,Rates and Ground Rents,South East DOMS Office,HOME OFFICE,3778967,"35,091.46"
MOJ,NOMS,30/11/2010,Rates and Ground Rents,Estates Capacity,SURREY HEATH BOROUGH COUNCIL,3472342,"34,983.00"
MOJ,NOMS,29/11/2010,Contracted-out Probation Trusts,Liverpool,MERSEYSIDE PROBATION TRUST,3772487,"34,947.87"
MOJ,NOMS,12/11/2010,Contracted-out Probation Trusts,Preston,LANCASHIRE PROBATION TRUST,3774522,"34,882.38"
MOJ,NOMS,01/11/2010,Counselling & Advisory Costs,Styal,LIFELINE PROJECT,3746596,"34,829.94"
MOJ,NOMS,23/11/2010,Uniforms & protective Clothing,Frankland,JIANGSU SUNSHINE IMPORT & EXPORT CO LTD,3729134,"34,676.32"
MOJ,NOMS,08/11/2010,Electricity,Birmingham,EDF ENERGY,3766647,"34,516.27"
MOJ,NOMS,03/11/2010,Contracted-out Probation Trusts,Wales Probation Trust,WALES PROBATION TRUST,3757920,"34,249.42"
MOJ,NOMS,05/11/2010,Electricity,Sheppey Clustered Services,EDF ENERGY,3764450,"34,097.52"
MOJ,NOMS,12/11/2010,Contracted-out Catering Services,Holme House,ESS SUPPORT SERVICES WORLDWIDE,3768677,"33,992.35"
MOJ,NOMS,12/11/2010,Gas,Preston,COFATHEC ENERGY PFI LTD,3775990,"33,957.22"
MOJ,NOMS,08/11/2010,Contracted-out operation of prisons and detention centres,Peterborough,PETERBOROUGH PRISON MANAGEMENT LTD,3766165,"33,916.25"
MOJ,NOMS,17/11/2010,Contracted-out Computer Services,Quantum,HP ENTERPRISE SERVICES UK LTD,3781810,"33,852.90"
MOJ,NOMS,24/11/2010,Payments to voluntary Organisations,Business and Service Development Group,CSV LTD,3790360,"33,750.00"
MOJ,NOMS,04/11/2010,Contracted-out operation of prisons and detention centres,Forest Bank,AGECROFT PRISON MANAGEMENT LTD,3761811,"33,705.09"
MOJ,NOMS,30/11/2010,Rates and Ground Rents,Estates Capacity,STOCKTON-ON-TEES BOROUGH COUNCIL,3472303,"33,682.05"
MOJ,NOMS,30/11/2010,Non-Phase 1 Ind,Wandsworth,TIMPSON LTD,3796638,"33,512.00"
MOJ,NOMS,15/11/2010,In Cell TV Costs,Unallocated Budgets,COMPUTACENTER (U K) LTD,3774432,"33,356.38"
MOJ,NOMS,09/11/2010,Contracted-out Probation Trusts,Channings Wood,DEVON AND CORNWALL PROBATION TRUST,3764636,"33,096.51"
MOJ,NOMS,26/11/2010,Secondments,Estates Capacity,MINISTRY OF DEFENCE,3790578,"33,072.82"
MOJ,NOMS,01/11/2010,Contracted-out Probation Trusts,Rehabilitation Services Group,DERBYSHIRE PROBATION TRUST,3756249,"33,037.35"
MOJ,NOMS,15/11/2010,Contracted-out Probation Trusts,Glen Parva,LEICESTERSHIRE&RUTLAND PROBATION TRUST,3777520,"32,954.35"
MOJ,NOMS,02/11/2010,Secondments,Wales/Cymru DOMS Office,WALES PROBATION TRUST,3755935,"32,928.15"
MOJ,NOMS,30/11/2010,Rates and Ground Rents,Estates Capacity,SWALE BOROUGH COUNCIL,3472345,"32,913.00"
MOJ,NOMS,26/11/2010,Water and Sewage,Manchester,UNITED UTILITIES WATER PLC,3793874,"32,715.41"
MOJ,NOMS,17/11/2010,Secondments,Chief Operating Officers Office,SURREY & SUSSEX PROBATION TRUST,3781157,"32,605.12"
MOJ,NOMS,30/11/2010,Rates and Ground Rents,Estates Capacity,DONCASTER MBC,3472424,"32,590.46"
MOJ,NOMS,26/11/2010,Contracted-out Probation Boards,Wormwood Scrubs,LONDON PROBATION TRUST,3770793,"32,494.12"
MOJ,NOMS,09/11/2010,WIP - Acquisitions,MoJ ICT,HP ENTERPRISE SERVICES UK LTD,3752195,"32,334.19"
MOJ,NOMS,29/11/2010,Counselling & Advisory Costs,Bristol,AVON & WILTSHIRE MENTAL HEALTH PARTNERSHIP N H S TRUST,3794239,"32,293.00"
MOJ,NOMS,18/11/2010,Legal Representation,Director of Probation's Office,TREASURY SOLICITORS,3783184,"32,198.14"
MOJ,NOMS,03/11/2010,Contracted-out Probation Boards,Woodhill,THAMES VALLEY PROBATION TRUST,3760292,"32,105.97"
MOJ,NOMS,08/11/2010,Water and Sewage,Liverpool,UNITED UTILITIES WATER PLC,3766856,"32,001.15"
MOJ,NOMS,17/11/2010,Contracted-out Other Services,Quantum,HP ENTERPRISE SERVICES UK LTD,3781814,"31,952.97"
MOJ,NOMS,30/11/2010,Rates and Ground Rents,Estates Capacity,EAST STAFFORDSHIRE BOROUGH COUNCIL,3472472,"31,878.00"
MOJ,NOMS,26/11/2010,Counselling & Advisory Costs,Bristol,AVON & WILTSHIRE MENTAL HEALTH PARTNERSHIP N H S TRUST,3752138,"31,656.00"
MOJ,NOMS,09/11/2010,Uniforms & protective Clothing,Belmarsh,JIANGSU SUNSHINE IMPORT & EXPORT CO LTD,3727273,"31,545.92"
MOJ,NOMS,26/11/2010,Contracted-out Building Maintenance,Lindholme,G WILKINSON CONSTRUCTION LTD,3778915,"31,481.34"
MOJ,NOMS,30/11/2010,Rates and Ground Rents,Estates Capacity,WYCHAVON DISTRICT COUNCIL,3472351,"31,257.00"
MOJ,NOMS,08/11/2010,Secondments,NOMS Cymru Regional Services,NATIONAL ASSEMBLY FOR WALES,3764103,"31,147.82"
MOJ,NOMS,01/11/2010,WIP - Professional Fees,Estates Capacity,TURNER & TOWNSEND PROJECT MANAGEMENT,3755034,"30,990.04"
MOJ,NOMS,08/11/2010,Electricity,Liverpool,EDF ENERGY,3766706,"30,981.10"
MOJ,NOMS,11/11/2010,Contracted-out Other Services,Gartree,COFATHEC ENERGY PFI LTD,3773093,"30,943.04"
MOJ,NOMS,18/11/2010,Legal Representation,Director of Probation's Office,TREASURY SOLICITORS,3783191,"30,734.57"
MOJ,NOMS,24/11/2010,Rates and Ground Rents,MOJ Shared Services NOMS Delivery,CYNCOED PROPERTY (CARDIFF) LTD,3791142,"30,550.00"
MOJ,NOMS,19/11/2010,Other - Acquisitions,Northallerton,THE LIFE CHANNEL LTD,3515429,"30,491.25"
MOJ,NOMS,09/11/2010,Contracted-out operation of prisons and detention centres,Rye Hill,ONLEY PRISON SERVICES LTD,3768188,"30,451.44"
MOJ,NOMS,23/11/2010,Contracted-out Resettlement Services,Isis,DEPAUL,3758349,"30,153.60"
MOJ,NOMS,05/11/2010,Electricity,Sheppey Clustered Services,EDF ENERGY,3764264,"30,096.54"
MOJ,NOMS,05/11/2010,Electricity,Risley,EDF ENERGY,3764413,"29,895.29"
MOJ,NOMS,30/11/2010,"New structural works, structural maintenance and equipment",Pentonville,CROWN FLOORING LTD,3796383,"29,786.25"
MOJ,NOMS,17/11/2010,Counselling & Advisory Costs,Sheppey Clustered Services,R A P T,3781838,"29,783.00"
MOJ,NOMS,30/11/2010,WIP - Acquisitions,Estates Capacity,VINCI CONSTRUCTION UK LTD,3796462,"29,772.06"
MOJ,NOMS,30/11/2010,Contracted-out Education,Dover,THE MANCHESTER COLLEGE,3796524,"29,722.35"
MOJ,NOMS,17/11/2010,Legal Representation,Director of Probation's Office,SURREY & SUSSEX PROBATION TRUST,3629498,"29,646.00"
MOJ,NOMS,12/11/2010,Contracted-out Probation Trusts,North West DOMS Office,LANCASHIRE PROBATION TRUST,3774708,"29,517.97"
MOJ,NOMS,08/11/2010,Electricity,Woodhill,EDF ENERGY,3766896,"29,493.40"
MOJ,NOMS,05/11/2010,Electricity,Ranby,EDF ENERGY,3764467,"29,401.72"
MOJ,NOMS,05/11/2010,Electricity,Full Sutton,EDF ENERGY,3764425,"29,397.61"
MOJ,NOMS,10/11/2010,Specialist Contractors,Financial Control & Accountancy,NATIONAL AUDIT OFFICE,3771281,"29,375.00"
MOJ,NOMS,17/11/2010,Consumables,Procurement Group,JIANGSU SUNSHINE IMPORT & EXPORT CO LTD,3773175,"29,371.08"
MOJ,NOMS,30/11/2010,Rates and Ground Rents,Estates Capacity,RUTLAND DISTRICT COUNCIL,3472408,"29,187.00"
MOJ,NOMS,30/11/2010,Rates and Ground Rents,Estates Capacity,SALFORD CITY COUNCIL,3528179,"29,178.77"
MOJ,NOMS,09/11/2010,Contracted-out Other Services,North East DOMS Office,CLEARSPRINGS MANAGEMENT LTD,3588719,"29,129.53"
MOJ,NOMS,23/11/2010,Water and Sewage,Long Lartin,SEVERN TRENT WATER LTD,3787923,"29,036.74"
MOJ,NOMS,30/11/2010,Rates and Ground Rents,Estates Capacity,ST EDMUNDSBURY BOROUGH COUNCIL,3472302,"28,976.84"
MOJ,NOMS,18/11/2010,Royalty Payments Due,Offender Employment Skills & Services Group,L & P (PSCS),3746857,"28,726.88"
MOJ,NOMS,30/11/2010,Water and Sewage,Liverpool,UNITED UTILITIES WATER PLC,3796689,"28,712.68"
MOJ,NOMS,09/11/2010,Contracted-out operation of prisons and detention centres,Bronzefield,ASHFORD PRISON SERVICES LIMITED,3766157,"28,696.64"
MOJ,NOMS,05/11/2010,Electricity,Bullingdon,EDF ENERGY,3764338,"28,683.02"
MOJ,NOMS,11/11/2010,Specialist Contractors,NOMS ICT,TRIBAL CONSULTING,3750491,"28,643.56"
MOJ,NOMS,09/11/2010,"Staff Compensation over 5,000",High Security Prisons Group,TREASURY SOLICITORS,3766780,"28,500.00"
MOJ,NOMS,23/11/2010,Contracted-out Other Services,Quantum,HP ENTERPRISE SERVICES UK LTD,3788109,"28,387.58"
MOJ,NOMS,05/11/2010,Electricity,Wormwood Scrubs,EDF ENERGY,3764473,"28,370.41"
MOJ,NOMS,01/11/2010,Contracted-out Probation Boards,Onley,NORTHAMPTONSHIRE PROBATION TRUST,3756825,"28,332.88"
MOJ,NOMS,11/11/2010,Contracted-out Probation Boards,Gartree,LEICESTERSHIRE&RUTLAND PROBATION TRUST,3772813,"28,184.92"
MOJ,NOMS,30/11/2010,Rates and Ground Rents,Estates Capacity,WIGAN COUNCIL,3532826,"28,152.00"
MOJ,NOMS,10/11/2010,Contracted-out Computer Services,NOMIS Programme,HP ENTERPRISE SERVICES UK LTD,3771644,"27,982.54"
MOJ,NOMS,02/11/2010,Contracted-out Probation Boards,Brinsford,STAFFORDSHIRE AND WEST MIDLANDS PROBATION TRUST,3441385,"27,954.91"
MOJ,NOMS,05/11/2010,Electricity,Highpoint,EDF ENERGY,3764469,"27,926.40"
MOJ,NOMS,11/11/2010,Secondments,NOMIS Programme,SURREY & SUSSEX PROBATION TRUST,3771696,"27,919.35"
MOJ,NOMS,04/11/2010,Contracted-out Catering Services,Hewell,ARAMARK LTD,3729095,"27,861.89"
MOJ,NOMS,04/11/2010,Electricity,Bullingdon,EDF ENERGY,3762302,"27,844.34"
MOJ,NOMS,16/11/2010,Counselling & Advisory Costs,IW Cluster,SOUTH STAFFORDSHIRE AND SHROPSHIRE HEALTHCARE NHS FOUNDATION TRUST,3779291,"27,841.83"
MOJ,NOMS,29/11/2010,Water and Sewage,Risley,UNITED UTILITIES WATER PLC,3795306,"27,805.88"
MOJ,NOMS,30/11/2010,Rates and Ground Rents,Estates Capacity,CHORLEY BOROUGH COUNCIL,3495010,"27,738.00"
MOJ,NOMS,26/11/2010,Contracted-out Other Services,Isis,JLA LTD,3793242,"27,724.13"
MOJ,NOMS,30/11/2010,Rates and Ground Rents,Estates Capacity,BRIDGEND COUNTY BOROUGH COUNCIL,3495009,"27,607.50"
MOJ,NOMS,15/11/2010,"New structural works, structural maintenance and equipment",Kirkham,K DARLINGTON & SONS LTD,3776840,"27,529.08"
MOJ,NOMS,05/11/2010,Contracted-out operation of prisons and detention centres,Altcourse,FAZAKERLEY PRISON SERVICES LTD,3762802,"27,472.42"
MOJ,NOMS,09/11/2010,Contracted-out Other Services,North East DOMS Office,CLEARSPRINGS MANAGEMENT LTD,3768531,"27,460.67"
MOJ,NOMS,17/11/2010,"New structural works, structural maintenance and equipment",Pentonville,RAVENSTONE (CENTRAL) LTD,3773601,"27,456.21"
MOJ,NOMS,09/11/2010,Contracted-out operation of prisons and detention centres,Parc,BRIDGEND CUSTODIAL SERVICES LTD,3763034,"27,408.58"
MOJ,NOMS,22/11/2010,WIP - Professional Fees,Estates Capacity,CYRIL SWEETT LTD,3722658,"27,401.35"
MOJ,NOMS,02/11/2010,Contracted-out operation of prisons and detention centres,Parc,BRIDGEND CUSTODIAL SERVICES LTD,3748146,"27,326.00"
MOJ,NOMS,22/11/2010,Drugs,Belmarsh,ALLIANCE HEALTHCARE,3786813,"27,324.88"
MOJ,NOMS,03/11/2010,Recruitment,Organisational Development Group,DWP - JOB CENTRE PLUS,3759522,"27,260.00"
MOJ,NOMS,17/11/2010,Counselling & Advisory Costs,Everthorpe,R A P T,3781845,"27,250.00"
MOJ,NOMS,16/11/2010,Gas,Bullingdon,CORONA ENERGY RETAIL 4 LTD,3779429,"27,035.76"
MOJ,NOMS,08/11/2010,Electricity,Hewell,EDF ENERGY,3766749,"26,994.98"
MOJ,NOMS,22/11/2010,Contracted-out Probation Trusts,Nottingham,NOTTINGHAMSHIRE PROBATION TRUST,3675091,"26,982.63"
MOJ,NOMS,10/11/2010,Contract IT Maintenance,MoJ ICT,SUNGARD PUBLIC SECTOR LTD,3772150,"26,976.27"
MOJ,NOMS,02/11/2010,Contracted-out Resettlement Services,Stocken,KAINOS COMMUNITY,3756484,"26,953.00"
MOJ,NOMS,01/11/2010,Contracted-out Probation Boards,Styal,CHESHIRE PROBATION TRUST,3757072,"26,814.88"
MOJ,NOMS,12/11/2010,Counselling & Advisory Costs,Exeter,EXETER DRUGS PROJECT,3739388,"26,779.00"
MOJ,NOMS,17/11/2010,Gas,Manchester,CORONA ENERGY RETAIL 4 LTD,3781908,"26,755.22"
MOJ,NOMS,05/11/2010,Electricity,Holme House,EDF ENERGY,3764435,"26,663.22"
MOJ,NOMS,10/11/2010,Contracted-out Medical services,Belmarsh,THE SEAGRAVE TRUST,3769803,"26,636.54"
MOJ,NOMS,23/11/2010,Counselling & Advisory Costs,Exeter,EXETER DRUGS PROJECT,3787872,"26,632.00"
MOJ,NOMS,05/11/2010,Electricity,Wakefield,EDF ENERGY,3764437,"26,622.29"
MOJ,NOMS,02/11/2010,Water and Sewage,Risley,UNITED UTILITIES WATER PLC,3758837,"26,600.92"
MOJ,NOMS,23/11/2010,In Cell TV Costs,Unallocated Budgets,COMPUTACENTER (U K) LTD,3774438,"26,517.11"
MOJ,NOMS,17/11/2010,Gas,Feltham,CORONA ENERGY RETAIL 4 LTD,3781871,"26,411.69"
MOJ,NOMS,10/11/2010,Contracted-out Probation Trusts,Holloway,LONDON PROBATION TRUST,3770798,"26,399.95"
MOJ,NOMS,11/11/2010,Contracted-out Other Services,Gartree,COFATHEC ENERGY PFI LTD,3773098,"26,391.66"
MOJ,NOMS,17/11/2010,Library Fees,Garth,LANCASHIRE COUNTY COUNCIL,3733059,"26,327.75"
MOJ,NOMS,12/11/2010,Consultancy,Organisational Development Group,NES IT,3768657,"26,087.62"
MOJ,NOMS,03/11/2010,Library Fees,Wakefield,CITY OF WAKEFIELD MET DISTRIC,3694328,"25,943.19"
MOJ,NOMS,16/11/2010,Miscellaneous,Security Group,LONDON PROBATION TRUST,3779200,"25,924.15"
MOJ,NOMS,09/11/2010,WIP - Professional Fees,Estates Capacity,RIDER LEVETT BUCKNALL UK LTD,3763144,"25,922.25"
MOJ,NOMS,09/11/2010,Contracted-out operation of prisons and detention centres,Peterborough,PETERBOROUGH PRISON MANAGEMENT LTD,3766024,"25,833.08"
MOJ,NOMS,01/11/2010,Contracted-out Probation Boards,Ranby,NOTTINGHAMSHIRE PROBATION TRUST,3721885,"25,750.75"
MOJ,NOMS,19/11/2010,WIP - Professional Fees,Estates Capacity,RIDER LEVETT BUCKNALL UK LTD,3684337,"25,725.03"
MOJ,NOMS,01/11/2010,Contracted-out Probation Trusts,Risley,CHESHIRE PROBATION TRUST,3757071,"25,678.71"
MOJ,NOMS,05/11/2010,Electricity,Leeds,EDF ENERGY,3764320,"25,661.95"
MOJ,NOMS,30/11/2010,Contracted-out Probation Boards,Wayland,NORFOLK AND SUFFOLK PROBATION TRUST,3795703,"25,644.43"
MOJ,NOMS,30/11/2010,Contracted-out Probation Trusts,Norwich,NORFOLK AND SUFFOLK PROBATION TRUST,3795704,"25,582.34"
MOJ,NOMS,30/11/2010,Contracted-out Probation Trusts,Erlestoke,WILTSHIRE PROBATION TRUST,3795008,"25,435.69"
MOJ,NOMS,16/11/2010,Secondments,Newday ESF,WALES PROBATION TRUST,3774850,"25,345.35"
MOJ,NOMS,24/11/2010,Water and Sewage,Sheppey Clustered Services,SOUTHERN WATER SERVICES LTD,3773158,"25,269.56"
MOJ,NOMS,17/11/2010,Gas,Featherstone,CORONA ENERGY RETAIL 4 LTD,3781875,"25,240.28"
MOJ,NOMS,17/11/2010,Electricity,Isis,EDF ENERGY,3782176,"25,203.14"
MOJ,NOMS,03/11/2010,Contracted-out Probation Trusts,Swansea,WALES PROBATION TRUST,3754447,"25,185.28"
MOJ,NOMS,04/11/2010,Contracted-out Library,Buckley Hall,ROCHDALE METROPOLITAN BOROUGH COUNCIL,3761937,"25,173.82"
MOJ,NOMS,08/11/2010,WIP - Professional Fees,Estates Capacity,AEDAS ARCHITECTS LTD,3761351,"25,148.34"
MOJ,NOMS,26/11/2010,Water and Sewage,Wandsworth,THAMES WATER UTILITIES LTD,3793883,"25,140.03"
MOJ,NOMS,15/11/2010,Contracted-out Probation Trusts,East Midlands DOMS Office,DERBYSHIRE PROBATION TRUST,3776103,"25,083.33"
MOJ,NOMS,09/11/2010,Counselling & Advisory Costs,NOMS Cymru Regional Services,WALES PROBATION TRUST,3768707,"25,062.20"
MOJ,NOMS,23/11/2010,WIP - Professional Fees,Estates Capacity,CYRIL SWEETT LTD,3766308,"25,027.50"
MOJ,NOMS,24/11/2010,Water and Sewage,Sheppey Clustered Services,SOUTHERN WATER SERVICES LTD,,"-26,383.43"
MOJ,NOMS,04/11/2010,Electricity,Bullingdon,EDF ENERGY,3762299,"-27,666.84"
MOJ,NOMS,02/11/2010,Contracted-out Escorts,Prisoner Escort & Custody Service (PECS),SERCO LTD,3747801,"-29,531.86"
MOJ,NOMS,17/11/2010,Electricity,Isis,EDF ENERGY,3782173,"-32,086.65"
MOJ,NOMS,24/11/2010,Water and Sewage,Sheppey Clustered Services,SOUTHERN WATER SERVICES LTD,,"-33,590.29"
MOJ,NOMS,24/11/2010,Water and Sewage,Hewell,SEVERN TRENT WATER LTD,3791122,"-40,346.71"
MOJ,NOMS,09/11/2010,Contracted-out operation of prisons and detention centres,Bronzefield,ASHFORD PRISON SERVICES LIMITED,3739583,"-87,428.99"
MOJ,NOMS,01/11/2010,WIP - Acquisitions,Estates Capacity,CARILLION JM LIMITED,,"-88,408.18"
MOJ,NOMS,09/11/2010,WIP - Acquisitions,Estates Capacity,CARILLION JM LIMITED,,"-88,408.18"
MOJ,NOMS,08/11/2010,Insurance,Peterborough,PETERBOROUGH PRISON MANAGEMENT LTD,3733950,"-113,710.16"
MOJ,NOMS,16/11/2010,WIP - Acquisitions,Estates Capacity,INTERSERVE PROJECT SERVICES LTD,3743837,"-1,239,042.20"
